bitfinex/quotes_ETHUSD_20240922
["timestamp","ask_amount","ask_price","bid_price","bid_amount"]
[1726984642088,1.21102301,2587.0,2586.9,6.86554]
[1726984642282,1.21102301,2587.1,2586.9,6.86554]
[1726984642624,1.21102301,2587.0,2586.9,6.86554]
[1726984642924,1.21102301,2587.1,2586.9,6.86554]
[1726984643082,1.21102301,2587.1,2586.9,10.73108]
[1726984643482,3.53302301,2587.2,2586.9,6.86554]
[1726984643626,1.21102301,2587.1,2586.9,6.86554]
[1726984644035,1.21102301,2587.1,2586.9,10.73108]
[1726984645030,1.21102301,2587.1,2586.9,3.86554]
[1726984645228,1.21102301,2587.0,2586.9,3.86554]
[1726984646035,1.21102301,2587.1,2586.9,3.86554]
[1726984646805,1.21102301,2587.0,2586.9,3.86554]
[1726984651320,1.21102301,2587.0,2586.7,3.86585]
[1726984651321,2.322,2586.9,2586.8,3.0]
[1726984654431,2.322,2586.9,2586.5,3.86615]
[1726984654772,1.21102301,2586.8,2586.5,3.86615]
[1726984655259,3.93104502,2586.9,2586.5,3.86615]
[1726984655260,1.21102301,2586.7,2586.5,3.86615]
[1726984655456,3.93104502,2586.9,2586.5,3.86615]
[1726984655457,1.21102301,2586.8,2586.5,3.86615]
[1726984655755,5.14206803,2586.9,2586.7,3.86592]
[1726984656071,3.53302301,2586.9,2586.7,3.86592]
[1726984657042,3.53302301,2586.9,2586.5,5.51320924]
[1726984657243,3.53302301,2586.9,2586.6,3.9432419]
[1726984659971,3.53302301,2586.9,2586.6,3.86593]
[1726984660169,3.53302301,2586.9,2586.6,3.94324195]
[1726984660388,3.53302301,2586.9,2586.7,3.86592]
[1726984663708,2.322,2586.9,2586.7,7.73176]
[1726984663894,2.322,2586.9,2586.7,3.86584]
[1726984664096,3.53302301,2586.9,2586.7,3.86584]
[1726984664414,1.60904502,2587.1,2586.7,3.86584]
[1726984664415,1.21102301,2587.0,2586.8,3.86569]
[1726984664569,1.21102301,2587.0,2586.7,7.80899965]
[1726984665283,1.21102301,2587.0,2586.8,3.86577]
[1726984668317,1.21102301,2587.1,2586.9,6.33002924]
[1726984668518,1.60904502,2587.3,2586.9,6.33002924]
[1726984668519,1.21102301,2587.2,2586.9,6.33002924]
[1726984668692,1.21102301,2587.3,2587.1,3.86533]
[1726984669321,1.21102301,2587.2,2587.1,3.86533]
[1726984670712,1.21102301,2587.2,2587.0,3.94270034]
[1726984670935,1.21102301,2587.2,2587.0,3.8654]
[1726984671533,1.21102301,2587.2,2586.9,6.33002924]
[1726984671534,1.21102301,2587.2,2587.1,3.86533]
[1726984671717,1.21102301,2587.2,2587.0,3.86545]
[1726984674378,1.21102301,2587.1,2587.0,3.86545]
[1726984674575,3.57162301,2587.1,2587.0,3.86545]
[1726984674985,3.57162301,2587.1,2586.8,3.86575]
[1726984678182,3.57162301,2587.1,2586.8,3.86569]
[1726984679543,1.21102301,2587.0,2586.8,3.86569]
[1726984681554,3.57162301,2587.1,2586.9,3.86563]
[1726984684821,1.21102301,2587.1,2587.0,3.86548]
[1726984684976,1.21135554,2587.1,2587.0,3.86548]
[1726984689818,1.60904502,2587.3,2587.1,3.86533]
[1726984690120,1.21147233,2587.2,2587.1,3.86533]
[1726984693116,1.21146891,2587.2,2587.1,3.86533]
[1726984693781,1.60904502,2587.2,2587.1,3.86533]
[1726984693985,4.10314502,2587.3,2587.1,3.86533]
[1726984694312,1.60904502,2587.2,2587.1,3.86533]
[1726984694513,4.10314502,2587.3,2587.1,3.86533]
[1726984694811,1.21151796,2587.2,2587.1,3.86533]
[1726984695112,2.4941,2587.1,2586.7,5.51293924]
[1726984695309,2.4941,2587.1,2586.8,3.0]
[1726984695310,1.21150404,2587.0,2586.8,3.0]
[1726984695810,1.21150404,2587.0,2586.9,3.86561]
[1726984696107,3.70560404,2587.1,2586.9,3.86561]
[1726984696671,1.21150404,2587.0,2586.9,3.86561]
[1726984696973,3.70560404,2587.1,2586.9,3.86561]
[1726984697414,1.21150404,2587.0,2586.9,3.86561]
[1726984697586,1.21150404,2587.0,2586.8,3.0]
[1726984697768,1.21150404,2587.0,2586.8,6.86568]
[1726984697971,1.21150404,2587.0,2586.8,3.0]
[1726984698874,1.21150404,2587.0,2586.8,6.86576]
[1726984701703,1.21150404,2587.0,2586.8,3.0]
[1726984703048,1.21150404,2587.0,2586.8,6.86574]
[1726984707671,1.21150404,2586.9,2586.8,6.86574]
[1726984708362,1.21150404,2587.0,2586.8,6.86574]
[1726984708530,1.21150404,2586.9,2586.8,6.86574]
[1726984708956,1.21150404,2586.9,2586.7,3.86578]
[1726984709168,2.4941,2586.8,2586.3,4.68379]
[1726984709473,1.21164817,2586.7,2586.3,6.40820807]
[1726984709771,1.21164817,2586.7,2586.5,3.86619]
[1726984710555,3.70574817,2586.8,2586.5,3.86619]
[1726984710740,1.21164817,2586.7,2586.5,3.86619]
[1726984711272,3.70574817,2586.8,2586.5,3.86619]
[1726984711443,3.70574817,2586.8,2586.5,7.73231]
[1726984711643,3.70574817,2586.8,2586.5,7.73227]
[1726984712063,3.70574817,2586.8,2586.5,3.86612]
[1726984712458,3.70574817,2586.8,2586.5,7.73226]
[1726984712979,3.70574817,2586.8,2586.5,3.86612]
[1726984713688,3.70574817,2586.8,2586.5,7.73226]
[1726984713883,3.70574817,2586.8,2586.5,3.86612]
[1726984717861,3.70574817,2586.8,2586.6,3.86607]
[1726984718163,3.70574817,2586.8,2586.5,7.73226]
[1726984718358,3.70574817,2586.8,2586.5,3.86612]
[1726984719786,3.70574817,2586.8,2586.5,7.73224]
[1726984720363,3.70574817,2586.8,2586.5,7.73225]
[1726984722297,3.70574817,2586.8,2586.4,3.0]
[1726984722521,1.21164817,2586.7,2586.4,3.0]
[1726984724009,1.21164817,2586.7,2586.4,6.86634]
[1726984724203,1.21164817,2586.7,2586.6,4.68337]
[1726984724360,1.21164817,2587.1,2586.9,3.86558]
[1726984724696,1.21164817,2587.2,2586.9,3.86558]
[1726984724905,1.21164817,2587.1,2586.9,3.86558]
[1726984725264,1.21164817,2587.2,2586.9,3.86558]
[1726984725807,1.21164817,2587.1,2586.9,3.86558]
[1726984726383,1.21164817,2587.1,2587.0,3.86548]
[1726984726696,1.60904502,2587.3,2587.0,3.86548]
[1726984726697,1.21164817,2587.2,2587.0,3.86548]
[1726984727621,1.21164817,2587.2,2587.1,3.86533]
[1726984729104,3.92304502,2587.4,2587.1,3.86533]
[1726984729105,1.21164817,2587.3,2587.1,3.86533]
[1726984730100,1.21164817,2587.3,2587.1,7.73066]
[1726984730292,1.21164817,2587.3,2587.1,3.86533]
[1726984731782,1.21164817,2587.2,2587.1,3.86533]
[1726984732666,1.21164817,2587.3,2587.1,3.86533]
[1726984732966,1.21164817,2587.2,2587.1,3.86533]
[1726984733304,1.21164817,2587.3,2587.1,3.86533]
[1726984734215,1.21164817,2587.2,2587.1,3.86533]
[1726984734411,1.21164817,2587.3,2587.1,3.86533]
[1726984735808,1.21164817,2587.3,2586.9,4.68286]
[1726984735809,1.21164817,2587.2,2586.9,7.73105]
[1726984736015,1.21164817,2587.2,2587.0,3.86544]
[1726984737007,1.21164817,2587.3,2587.0,3.86544]
[1726984737724,1.21164817,2587.2,2587.0,3.86544]
[1726984738389,1.60904502,2587.3,2587.1,3.86533]
[1726984738390,1.21164817,2587.3,2587.1,3.86533]
[1726984740925,1.21164817,2587.3,2587.0,4.6827]
[1726984741878,1.21164817,2587.2,2587.0,3.8654]
[1726984742431,2.21164817,2587.3,2587.0,7.7308]
[1726984742595,1.21164817,2587.2,2587.0,3.8654]
[1726984742800,1.21164817,2587.2,2587.0,7.7308]
[1726984743432,2.21164817,2587.3,2587.0,3.8654]
[1726984743584,1.21164817,2587.2,2587.0,7.7308]
[1726984743784,2.21164817,2587.3,2587.0,7.7308]
[1726984744184,1.21164817,2587.2,2587.0,7.7308]
[1726984744389,1.21164817,2587.2,2587.0,3.8654]
[1726984745112,2.21164817,2587.3,2587.0,3.8654]
[1726984745725,2.21164817,2587.3,2587.1,3.86533]
[1726984745726,1.21164817,2587.2,2587.1,3.86533]
[1726984745929,1.0,2587.3,2587.1,3.86533]
[1726984745930,2.21164817,2587.3,2587.1,3.86533]
[1726984747699,1.21164817,2587.2,2587.1,3.86533]
[1726984747908,2.21164817,2587.3,2587.1,3.86533]
[1726984748223,1.21164817,2587.2,2587.1,3.86533]
[1726984748531,1.21164817,2587.2,2587.0,3.86548]
[1726984749137,2.4282,2587.1,2587.0,3.86548]
[1726984753417,2.4282,2587.1,2586.8,3.86567]
[1726984753767,2.4282,2587.1,2586.9,3.86555]
[1726984756371,2.4282,2587.1,2586.7,1.64709924]
[1726984756372,2.4282,2587.1,2586.7,3.86583]
[1726984756773,2.4282,2587.1,2586.8,3.86577]
[1726984757269,3.63896964,2587.1,2586.8,3.86577]
[1726984759053,3.63896964,2587.1,2586.8,7.73141]
[1726984759251,3.63896964,2587.1,2586.8,3.86564]
[1726984760756,1.21076964,2587.0,2586.8,3.86564]
[1726984761290,1.21076964,2587.0,2586.8,7.73133]
[1726984761475,3.63896964,2587.1,2586.8,3.86564]
[1726984761987,1.21076964,2587.0,2586.8,3.86564]
[1726984763306,3.63896964,2587.1,2586.8,3.86564]
[1726984764001,1.21076964,2587.0,2586.8,7.73134]
[1726984764591,1.21076964,2587.0,2586.8,3.86564]
[1726984766064,1.21076964,2587.0,2586.8,7.73134]
[1726984767667,1.21076964,2587.0,2586.8,3.86564]
[1726984768102,1.21076964,2587.0,2586.8,7.73133]
[1726984768286,1.21076964,2587.0,2586.8,3.86564]
[1726984768691,1.21076964,2587.0,2586.8,7.73133]
[1726984769202,1.21076964,2586.9,2586.8,3.86564]
[1726984773576,1.21076964,2587.0,2586.8,3.86564]
[1726984775824,1.21076964,2586.9,2586.8,3.86564]
[1726984776335,1.21076964,2587.0,2586.8,3.86564]
[1726984777208,1.21076964,2586.9,2586.8,3.86564]
[1726984785245,1.21076964,2586.9,2586.7,3.86585]
[1726984785614,1.21076964,2586.9,2586.7,7.73168]
[1726984785816,1.21076964,2586.9,2586.7,3.86583]
[1726984786039,1.21076964,2586.8,2586.7,3.86583]
[1726984787120,3.88715952,2587.0,2586.8,3.86578]
[1726984787333,3.88715952,2587.0,2586.4,4.64709924]
[1726984787334,4.88554819,2587.0,2586.4,6.86626]
[1726984787563,1.21309312,2586.7,2586.5,3.8661]
[1726984788429,1.21309312,2586.7,2586.0,7.38]
[1726984788430,3.94605749,2586.6,2586.2,3.86665]
[1726984788616,1.2126988,2586.4,2586.2,3.86665]
[1726984790014,1.2126988,2586.5,2586.2,3.86665]
[1726984791388,1.2126988,2586.5,2586.2,3.86658]
[1726984793324,3.5412988,2586.6,2586.2,3.86658]
[1726984796956,3.5412988,2586.6,2586.2,7.73314]
[1726984797154,2.3286,2586.6,2586.2,3.86657]
[1726984797386,3.5412988,2586.6,2586.2,3.86657]
[1726984797927,2.3286,2586.6,2586.2,3.86657]
[1726984798132,3.5412988,2586.6,2586.2,3.86657]
[1726984798792,2.3286,2586.6,2586.2,3.86657]
[1726984799177,3.5412988,2586.6,2586.2,3.86657]
[1726984799990,2.3286,2586.6,2586.2,3.86657]
[1726984800200,3.5241088,2586.6,2586.2,3.86657]
[1726984800573,2.31141,2586.6,2586.2,3.86657]
[1726984800908,3.5241088,2586.6,2586.2,3.86657]
[1726984801116,4.42485943,2586.6,2586.2,3.86657]
[1726984801528,4.42485943,2586.6,2586.1,3.86673]
[1726984801822,3.5241088,2586.6,2586.1,3.86673]
[1726984802678,3.5241088,2586.6,2586.0,4.68413]
[1726984802885,1.2126988,2586.5,2586.0,4.68413]
[1726984803578,2.31141,2586.6,2586.4,3.86637]
[1726984803579,3.5241088,2586.6,2586.4,3.86637]
[1726984803776,3.5668988,2587.0,2586.8,3.86578]
[1726984803988,1.2126988,2587.0,2586.8,3.86569]
[1726984804306,1.2126988,2587.2,2586.9,4.70013]
[1726984804721,1.2126988,2587.2,2586.8,3.86569]
[1726984805218,7.4322688,2587.1,2586.6,3.86597]
[1726984805515,1.2126988,2587.0,2586.5,6.86621]
[1726984805717,1.2126988,2586.9,2586.5,3.86621]
[1726984806021,2.3542,2586.8,2586.5,3.86621]
[1726984806779,1.2126988,2586.9,2586.6,3.86596]
[1726984807130,3.5668988,2587.0,2586.6,3.86596]
[1726984807414,3.5668988,2587.0,2586.6,7.73195]
[1726984807616,3.5668988,2587.0,2586.6,4.70046]
[1726984807827,1.2126988,2587.0,2586.6,4.70046]
[1726984808318,1.2126988,2586.9,2586.6,3.86596]
[1726984809689,2.3542,2586.8,2586.4,3.86623]
[1726984809896,1.2126988,2586.7,2586.4,3.86623]
[1726984810718,2.3542,2586.5,2586.0,4.70135]
[1726984810917,2.3542,2586.5,2586.2,3.86667]
[1726984812939,2.3542,2586.5,2586.0,4.70134]
[1726984813229,6.22046,2586.5,2586.0,3.86684]
[1726984813396,7.4331588,2586.5,2586.0,3.86684]
[1726984813597,3.86641,2586.4,2585.9,3.0]
[1726984813942,7.4331588,2586.5,2585.9,3.0]
[1726984814139,1.2126988,2586.4,2585.9,6.86711]
[1726984814294,5.0790888,2586.4,2585.9,3.0]
[1726984814889,5.0790888,2586.4,2585.9,6.86711]
[1726984815332,2.3431,2586.3,2585.9,6.86711]
[1726984815645,6.20963,2586.3,2585.9,3.0]
[1726984816195,6.20963,2586.3,2585.6,7.38]
[1726984816196,3.8669,2586.1,2585.6,7.38]
[1726984816481,2.3431,2585.9,2585.6,7.38]
[1726984816605,2.3431,2585.9,2585.4,3.86773]
[1726984816809,2.3431,2585.9,2585.5,3.8677]
[1726984817015,2.3431,2585.9,2585.4,7.73548]
[1726984817227,2.3431,2585.9,2585.4,3.86773]
[1726984817407,7.4229788,2585.9,2585.4,3.86773]
[1726984817729,2.3431,2585.9,2585.4,3.86773]
[1726984823214,2.3431,2585.9,2585.4,7.73551]
[1726984823615,2.3431,2585.9,2585.4,3.86773]
[1726984824312,6.95249988,2585.9,2585.4,3.86773]
[1726984824510,2.3431,2585.8,2585.4,3.86773]
[1726984825360,2.3431,2585.8,2585.3,3.86788]
[1726984826817,6.21039,2585.8,2585.2,3.86804]
[1726984828818,6.21039,2585.8,2585.3,3.86802]
[1726984829331,10.07778,2585.8,2585.2,3.86804]
[1726984829663,6.21039,2585.8,2585.2,3.86804]
[1726984830726,6.21039,2585.8,2585.3,3.86801]
[1726984832561,3.86743,2585.7,2585.2,3.86804]
[1726984833157,2.4099,2585.7,2585.2,7.73611]
[1726984834157,2.4099,2585.7,2585.2,3.86804]
[1726984834378,6.97928699,2585.7,2585.2,3.86804]
[1726984835561,2.4099,2585.6,2585.2,3.86804]
[1726984843169,2.4099,2585.6,2585.3,3.86797]
[1726984843375,2.4099,2585.6,2585.2,3.86804]
[1726984843675,2.4099,2585.6,2585.2,7.73612]
[1726984843993,2.4099,2585.6,2585.2,3.86804]
[1726984844475,2.4099,2585.6,2585.2,7.73613]
[1726984845476,2.4099,2585.6,2585.2,3.86804]
[1726984846581,2.4099,2585.6,2585.3,3.86802]
[1726984846937,2.4099,2585.6,2585.2,3.86804]
[1726984847345,2.4099,2585.6,2585.2,7.73613]
[1726984848062,2.4099,2585.6,2585.3,3.86801]
[1726984848262,3.86713,2585.9,2585.4,3.86779]
[1726984848479,2.4099,2585.8,2585.4,3.86778]
[1726984850070,2.4099,2585.8,2585.5,3.86769]
[1726984856492,1.2126988,2585.9,2585.5,3.86769]
[1726984858618,1.2126988,2585.8,2585.5,3.86769]
[1726984859826,1.2126988,2585.7,2585.5,3.86769]
[1726984860017,1.2126988,2585.7,2585.6,3.86757]
[1726984860214,1.2126988,2585.7,2585.6,4.70207]
[1726984860586,1.2126988,2585.8,2585.7,3.86742]
[1726984860827,1.2126988,2585.9,2585.8,3.86727]
[1726984861032,1.2126988,2586.0,2585.9,3.86712]
[1726984861212,1.2126988,2586.2,2586.0,3.86684]
[1726984861857,1.2126988,2586.1,2586.0,3.86684]
[1726984862454,1.2126988,2586.1,2585.9,3.86712]
[1726984862750,1.2126988,2586.1,2585.9,3.86704]
[1726984862955,1.2126988,2586.1,2585.9,7.73408]
[1726984863253,1.2126988,2586.1,2585.9,3.86704]
[1726984863413,4.07145749,2586.2,2585.7,3.86735]
[1726984863414,1.2126988,2586.0,2585.7,3.86732]
[1726984863617,1.2126988,2585.9,2585.7,3.86732]
[1726984866555,1.2126988,2585.8,2585.5,3.86762]
[1726984868744,1.2126988,2585.8,2585.3,4.70248]
[1726984868745,1.2126988,2585.8,2585.3,3.86792]
[1726984868943,2.454,2585.6,2585.3,3.86792]
[1726984869175,3.6666988,2585.6,2585.3,3.86792]
[1726984869518,3.6666988,2585.6,2585.1,0.8345]
[1726984869720,1.2126988,2585.4,2585.1,4.70273]
[1726984870267,1.2126988,2585.4,2585.1,3.86823]
[1726984870466,1.2126988,2585.4,2585.1,3.86822]
[1726984870666,2.454,2585.3,2585.0,3.86845]
[1726984870959,3.6666988,2585.3,2585.0,3.86845]
[1726984871727,3.6666988,2585.3,2585.1,3.86829]
[1726984871728,2.454,2585.3,2585.1,3.86829]
[1726984872726,2.454,2585.3,2584.9,7.73705]
[1726984872933,3.6666988,2585.3,2584.9,7.73705]
[1726984873137,1.2126988,2585.4,2585.1,3.8683]
[1726984875471,3.6451988,2585.5,2585.1,3.8683]
[1726984875889,1.2126988,2585.4,2585.1,3.8683]
[1726984876769,3.6451988,2585.5,2585.1,7.73646]
[1726984876972,1.2126988,2585.5,2585.0,0.8345]
[1726984877267,1.2126988,2585.6,2585.3,3.86793]
[1726984878234,1.2126988,2585.6,2585.0,2.48159924]
[1726984878235,1.2126988,2585.7,2585.5,3.86772]
[1726984878471,1.2126988,2585.7,2585.6,3.86757]
[1726984878672,1.2126988,2585.8,2585.6,3.86757]
[1726984878877,3.6451988,2585.9,2585.6,3.86757]
[1726984879236,1.2126988,2585.8,2585.6,3.86757]
[1726984879959,1.2126988,2585.8,2585.7,3.86742]
[1726984880161,1.2126988,2585.9,2585.6,3.86756]
[1726984880571,1.2126988,2585.9,2585.8,3.86727]
[1726984881187,1.2126988,2586.0,2585.8,3.86727]
[1726984881704,3.6451988,2586.1,2586.0,3.86697]
[1726984881849,1.2126988,2586.1,2586.0,3.86697]
[1726984882262,1.2126988,2586.1,2585.9,3.86703]
[1726984882783,1.61745749,2586.2,2585.9,7.73403]
[1726984883193,2.4325,2586.3,2585.9,7.73403]
[1726984884992,1.20933004,2586.1,2585.9,7.73403]
[1726984885203,1.20933004,2586.1,2586.0,3.86697]
[1726984886766,1.20933004,2586.1,2586.0,5.51406924]
[1726984886970,1.20933004,2586.1,2586.0,6.34856924]
[1726984887587,1.20933004,2586.1,2586.0,9.34856924]
[1726984889620,1.20933004,2586.1,2586.0,9.89856924]
[1726984889791,2.82177011,2586.8,2586.0,9.89856924]
[1726984889792,1.20933004,2587.2,2587.0,3.86547]
[1726984889992,0.72698202,2587.2,2587.0,3.86547]
[1726984890182,0.72698202,2587.2,2586.8,7.73143]
[1726984890382,0.72698202,2587.2,2586.8,3.86567]
[1726984890620,0.72698202,2587.2,2586.9,3.86553]
[1726984891387,2.4325,2587.3,2586.9,3.86553]
[1726984893492,2.4325,2587.3,2587.0,3.86544]
[1726984893821,2.4325,2587.3,2587.1,3.86532]
[1726984895916,2.4892,2587.6,2587.1,3.86532]
[1726984896626,6.35379,2587.6,2587.1,3.86532]
[1726984896932,7.66504195,2587.6,2587.1,3.86532]
[1726984897842,3.80045195,2587.6,2587.1,3.86532]
[1726984897992,2.4892,2587.6,2587.2,3.86514]
[1726984898913,2.4892,2587.6,2587.3,3.86502]
[1726984899391,2.4892,2587.6,2587.4,3.86482]
[1726984899720,2.4892,2587.6,2587.4,3.86487]
[1726984900237,2.5270602,2587.8,2587.4,3.86487]
[1726984900443,0.0378602,2587.8,2587.7,3.86443]
[1726984904242,0.0378602,2587.8,2587.6,3.86458]
[1726984904435,0.0378602,2587.8,2587.7,3.86443]
[1726984904802,0.0378602,2587.8,2587.7,4.69893]
[1726984905305,0.0378602,2587.8,2587.7,11.33908262]
[1726984905509,0.0378602,2587.8,2587.7,11.2617979]
[1726984912714,0.0378602,2587.8,2587.7,7.69893]
[1726984913455,0.0378602,2587.8,2587.7,11.2617979]
[1726984917454,0.0378602,2587.8,2587.7,11.8117979]
[1726984919166,0.0378602,2587.8,2587.7,11.2617979]
[1726984921027,0.0378602,2587.8,2587.7,11.8117979]
[1726984922585,0.0378602,2587.8,2587.7,11.2617979]
[1726984924468,0.0378602,2587.8,2587.7,10.4272979]
[1726984926798,2.3681602,2587.8,2587.6,3.86458]
[1726984926996,2.3681602,2587.8,2587.6,3.8645]
[1726984927200,2.3681602,2587.8,2587.7,3.86443]
[1726984927670,0.0378602,2587.8,2587.7,3.86443]
[1726984927876,0.0378602,2587.8,2587.7,3.94171043]
[1726984928092,0.0378602,2587.8,2587.7,3.86443]
[1726984930875,2.3681602,2587.8,2587.6,3.0]
[1726984931776,2.3681602,2587.8,2587.6,6.86457]
[1726984932166,2.3681602,2587.8,2587.6,3.0]
[1726984934115,2.3681602,2587.8,2587.5,7.72928]
[1726984934285,2.3681602,2587.8,2587.5,3.86464]
[1726984935115,2.3681602,2587.8,2587.5,7.72928]
[1726984935284,2.3681602,2587.8,2587.6,3.86452]
[1726984935679,2.3681602,2587.8,2587.5,7.72929]
[1726984936185,2.3681602,2587.8,2587.6,3.86457]
[1726984937818,2.3681602,2587.8,2587.5,3.86464]
[1726984937978,2.3681602,2587.8,2587.5,7.72929]
[1726984938176,2.3681602,2587.8,2587.5,7.72928]
[1726984941482,2.3681602,2587.8,2587.7,3.86443]
[1726984944600,0.0378602,2587.8,2587.7,3.86443]
[1726984945135,2.4652602,2587.8,2587.6,3.8645]
[1726984945702,2.4652602,2587.8,2587.6,3.86449]
[1726984946930,2.4652602,2587.8,2587.7,3.86443]
[1726984951206,0.0378602,2587.8,2587.7,3.86443]
[1726984962942,0.0378602,2587.8,2587.7,4.69893]
[1726984965582,0.0378602,2587.8,2587.7,3.86443]
[1726984966075,2.3629602,2587.8,2587.7,3.86443]
[1726984968640,0.0378602,2587.8,2587.7,3.86443]
[1726984968968,0.0378602,2587.8,2587.7,4.69893]
[1726984971800,0.0378602,2587.8,2587.7,4.77620881]
[1726984971998,0.0378602,2587.8,2587.7,4.77494396]
[1726984973595,0.0378602,2587.8,2587.7,9.41950768]
[1726984973768,0.0378602,2587.8,2587.7,9.34222887]
[1726984977758,0.0378602,2587.8,2587.7,6.86316515]
[1726984981414,0.0378602,2587.8,2587.7,8.58500691]
[1726984981711,0.0378602,2587.8,2587.7,8.50772887]
[1726984983812,0.0378602,2587.8,2587.7,6.86316515]
[1726984987017,0.0378602,2587.8,2587.7,6.94044295]
[1726984991522,0.0378602,2587.8,2587.7,6.86316515]
[1726984995034,0.0378602,2587.8,2587.7,6.94044399]
[1726984998995,0.0378602,2587.8,2587.7,8.58500771]
[1726984999315,0.0378602,2587.8,2587.7,8.50772887]
[1726985000845,0.0378602,2587.8,2587.7,9.34222887]
[1726985005745,0.0378602,2587.8,2587.7,9.89222887]
[1726985006355,0.0378602,2587.8,2587.7,10.29623513]
[1726985007116,0.0378602,2587.8,2587.7,9.89222887]
[1726985007937,0.0378602,2587.8,2587.7,10.50848813]
[1726985008341,0.0378602,2587.8,2587.7,10.29623725]
[1726985009346,0.0378602,2587.8,2587.7,9.89222887]
[1726985010081,0.0378602,2587.8,2587.7,10.2962096]
[1726985011812,0.0378602,2588.6,2588.5,7.69774]
[1726985012142,0.0378602,2588.6,2588.5,9.41955303]
[1726985012366,0.0378602,2588.6,2588.5,9.34230372]
[1726985021952,2.5071602,2589.4,2588.5,9.34230372]
[1726985021953,0.0378602,2589.4,2589.3,7.69654]
[1726985022126,0.0378602,2589.4,2589.3,8.58382981]
[1726985022461,0.0378602,2589.4,2589.3,6.86204]
[1726985022769,0.0378602,2589.4,2589.3,8.50660372]
[1726985023944,0.0378602,2589.4,2589.3,3.86204]
[1726985024232,2.5071602,2589.4,2589.3,3.86204]
[1726985029478,0.0378602,2589.4,2589.3,6.86204]
[1726985029745,0.0378602,2589.4,2589.3,6.93927766]
[1726985031265,0.0378602,2589.4,2589.3,6.86204]
[1726985031675,0.0378602,2589.4,2589.3,6.93926904]
[1726985035443,0.0378602,2589.4,2589.3,8.32376904]
[1726985035644,0.0378602,2589.4,2589.3,8.24654]
[1726985037247,0.0378602,2590.1,2590.0,6.861]
[1726985037455,0.0378602,2590.1,2590.0,8.58277033]
[1726985037668,0.0378602,2590.1,2590.0,8.50556372]
[1726985038423,0.0378602,2590.1,2590.0,6.861]
[1726985038589,0.0378602,2590.1,2590.0,8.50556372]
[1726985039280,0.0378602,2590.1,2590.0,6.861]
[1726985040321,0.0378602,2590.1,2590.0,8.50556372]
[1726985040820,0.0378602,2590.1,2590.0,6.861]
[1726985041739,2.4273,2590.0,2589.9,6.86103]
[1726985042083,2.4273,2590.0,2589.9,3.86103]
[1726985043397,2.4273,2590.0,2589.9,6.86103]
[1726985053952,2.472,2589.9,2589.6,3.0]
[1726985054107,2.472,2589.9,2589.6,6.86159]
[1726985054507,2.472,2589.9,2589.7,3.86143]
[1726985054821,2.472,2589.9,2589.6,6.86157]
[1726985060241,2.472,2589.9,2589.8,3.8613]
[1726985061247,2.472,2589.9,2589.6,6.8615]
[1726985061248,2.472,2589.9,2589.6,10.72298]
[1726985061546,2.472,2589.9,2589.7,3.86136]
[1726985071726,2.472,2589.9,2589.6,6.86148]
[1726985085705,2.472,2589.9,2589.6,10.72297]
[1726985086975,2.472,2589.9,2589.7,3.86142]
[1726985087581,2.472,2589.9,2589.8,3.8613]
[1726985087809,2.4755602,2590.1,2589.7,3.86144]
[1726985088096,2.4755602,2590.1,2589.7,0.0772273]
[1726985088307,0.0378602,2590.1,2590.0,5.50307382]
[1726985088461,0.0378602,2590.1,2590.0,8.58027897]
[1726985088663,0.0378602,2590.1,2590.0,8.50307382]
[1726985091378,0.0378602,2590.1,2590.0,9.33757382]
[1726985099636,0.0378602,2590.1,2590.0,9.88757382]
[1726985110865,0.0378602,2590.9,2590.8,6.85981]
[1726985111064,0.0378602,2590.9,2590.8,8.57906601]
[1726985111236,0.0378602,2590.9,2590.8,8.50188382]
[1726985113303,0.0378602,2590.9,2590.8,6.85981]
[1726985113304,2.3668602,2590.9,2590.8,6.85981]
[1726985114634,2.3668602,2590.9,2590.8,8.50188382]
[1726985118736,2.3668602,2590.9,2590.8,6.85981]
[1726985124247,0.0378602,2590.9,2590.8,6.85981]
[1726985128320,0.0378602,2590.9,2590.8,7.77149918]
[1726985129907,0.0378602,2590.9,2590.8,8.32149918]
[1726985130114,0.0378602,2590.9,2590.8,8.24431]
[1726985130812,0.0378602,2590.9,2590.8,7.69431]
[1726985131934,0.0378602,2590.9,2590.8,9.33638382]
[1726985133457,0.0378602,2590.9,2590.8,8.50188382]
[1726985136222,0.02655088,2590.9,2590.8,8.50188382]
[1726985141045,2.31935088,2590.9,2590.8,8.50188382]
[1726985145547,0.02655088,2590.9,2590.8,8.50188382]
[1726985161086,0.02655088,2590.9,2590.8,9.33638382]
[1726985163096,0.02655088,2590.9,2590.8,6.85981]
[1726985163312,0.02655088,2590.9,2590.8,8.50188382]
[1726985171510,0.02655088,2590.9,2590.8,9.33638382]
[1726985177149,0.02655088,2590.9,2590.8,9.88638382]
[1726985179215,0.02655088,2590.9,2590.8,7.69431]
[1726985179547,0.02655088,2590.9,2590.8,9.41356142]
[1726985179749,0.02655088,2590.9,2590.8,9.33638382]
[1726985181921,0.02655088,2590.9,2590.8,9.88638382]
[1726985182616,0.02655088,2590.9,2590.8,9.33638382]
[1726985197342,0.02655088,2590.9,2590.8,9.51013186]
[1726985199349,0.02655088,2590.9,2590.8,10.06013186]
[1726985206676,0.02655088,2590.9,2590.8,8.24431]
[1726985206875,0.02655088,2590.9,2590.8,9.88638382]
[1726985209898,0.02655088,2590.9,2590.8,8.50188382]
[1726985230940,0.02655088,2590.9,2590.8,8.67506158]
[1726985233903,0.02655088,2590.9,2590.8,8.50188382]
[1726985240006,0.02655088,2590.9,2590.8,9.88638382]
[1726985255179,0.02655088,2590.9,2590.8,9.05188382]
[1726985259213,0.02655088,2590.9,2590.8,9.88638382]
[1726985268397,0.02655088,2590.9,2590.8,10.27123566]
[1726985270885,0.02655088,2590.9,2590.8,9.88638382]
[1726985271379,0.02655088,2590.9,2590.8,10.27123871]
[1726985272021,0.02569782,2590.9,2590.8,10.27123871]
[1726985274135,0.02569782,2590.9,2590.8,9.43673871]
[1726985274435,0.02569782,2590.9,2590.8,9.05188382]
[1726985274582,0.02569782,2590.9,2590.8,9.43677547]
[1726985282951,0.02569782,2590.9,2590.8,9.05188382]
[1726985283581,0.02569782,2590.9,2590.8,11.86662194]